bitfinex-derivatives/quotes_SOLF0:USTF0_20250114
["timestamp","ask_amount","ask_price","bid_price","bid_amount"]
[1736817703761,12.86702461,183.29,183.25,2.7295]
[1736817703962,12.86702461,183.29,183.2,93.76733218]
[1736817704165,12.86702461,183.32,183.2,106.63435679]
[1736817704366,12.86702461,183.35,183.23,12.86702461]
[1736817704559,12.86702461,183.35,183.24,1.5731]
[1736817704963,12.86702461,183.35,183.3,2.7287]
[1736817705264,12.86702461,183.35,183.24,1.5731]
[1736817705560,12.86702461,183.38,183.26,12.86702461]
[1736817705865,1.5528,183.41,183.29,12.86702461]
[1736817706372,4.28,183.41,183.35,2.7279]
[1736817707159,5.8777,183.41,183.35,2.7279]
[1736817707759,3.1505,183.41,183.35,2.7279]
[1736817708358,2.7277,183.37,183.3,2.7286]
[1736817708564,12.86702461,183.36,183.27,1.5631]
[1736817710159,15.59492461,183.36,183.31,2.7285]
[1736817710358,15.59492461,183.36,183.27,1.5631]
[1736817710960,15.59492461,183.36,183.3,2.7287]
[1736817711762,15.59492461,183.36,183.31,2.7286]
[1736817713765,2.7281,183.35,183.3,2.7287]
[1736817714066,2.7281,183.35,183.27,1.5631]
[1736817715866,2.7281,183.35,183.3,2.7286]
[1736817717369,8.2313173,183.34,183.28,8.2313173]
[1736817717562,8.2313173,183.34,183.31,2.7286]
[1736817718157,2.7279,183.36,183.31,2.7286]
[1736817718364,8.2313173,183.35,183.31,2.7286]
[1736817719364,2.7279,183.36,183.33,2.7282]
[1736817719365,8.2313173,183.36,183.33,2.7282]
[1736817719665,8.2313173,183.36,183.3,8.2313173]
[1736817720668,8.2313173,183.36,183.34,2.7281]
[1736817720867,8.2313173,183.36,183.3,8.2313173]
[1736817721169,8.2313173,183.36,183.31,2.7285]
[1736817721365,8.2313173,183.36,183.3,8.2313173]
[1736817721565,8.2313173,183.38,183.32,8.2313173]
[1736817721761,2.7269,183.42,183.38,2.7275]
[1736817721967,8.2313173,183.43,183.38,8.2313173]
[1736817722166,5.7,183.5,183.38,8.2313173]
[1736817722363,8.2313173,183.43,183.38,8.2313173]
[1736817722666,8.2313173,183.39,183.25,29.8214068]
[1736817722864,5.7,183.43,183.29,8.2313173]
[1736817722865,3.3933,183.42,183.29,8.2313173]
[1736817723068,8.2313173,183.36,183.29,8.2313173]
[1736817723472,2.7276,183.38,183.28,12.85662254]
[1736817723669,12.85662254,183.4,183.28,12.85662254]
[1736817723869,12.85662254,183.37,183.26,9.1320517]
[1736817724064,2.728,183.35,183.3,2.7287]
[1736817724463,12.85662254,183.37,183.26,14.8320517]
[1736817724464,2.7284,183.33,183.28,2.7289]
[1736817727070,12.85662254,183.34,183.26,1.6767]
[1736817727271,12.85662254,183.31,183.26,1.6767]
[1736817728171,12.85662254,183.31,183.27,2.7292]
[1736817728567,12.85662254,183.31,183.19,12.85662254]
[1736817728772,12.85662254,183.31,183.21,31.5189068]
[1736817729172,2.7294,183.26,183.22,2.7299]
[1736817730077,2.7292,183.27,183.22,2.7299]
[1736817730674,111.0,183.21,183.2,39.52543218]
[1736817730873,222.0,183.15,183.09,276.40005559]
[1736817731078,244.0,183.09,183.03,87.0638885]
[1736817731282,15.58922254,183.04,183.03,87.0638885]
[1736817731672,70.9361115,183.02,183.0,378.4713908]
[1736817731877,2.7336,182.98,182.86,7.6504]
[1736817732077,83.79273404,183.02,182.86,7.6504]
[1736817732078,12.85662254,182.92,182.86,4.9152]
[1736817732277,12.85662254,182.92,182.82,12.85662254]
[1736817732477,12.85662254,182.92,182.77,6.1]
[1736817732478,6.84146489,182.91,182.77,6.1]
[1736817732678,6.84146489,182.91,182.82,12.85662254]
[1736817732880,6.84146489,182.91,182.76,6.1]
[1736817732881,61.03711537,182.9,182.85,12.85662254]
[1736817733080,67.87858026,182.9,182.85,12.85662254]
[1736817733277,67.87858026,182.9,182.79,12.85662254]
[1736817733485,67.87858026,182.89,182.84,20.66563906]
[1736817733681,67.87858026,182.89,182.85,1.6817]
[1736817733987,52.70991537,182.88,182.86,20.66563906]
[1736817734185,50.11921537,182.88,182.86,1.6201]
[1736817734389,57.71359422,182.87,182.86,1.6201]
[1736817734583,36.26029422,182.87,182.86,1.6201]
[1736817734890,26.68899422,182.87,182.86,1.6201]
[1736817735188,26.68899422,182.87,182.84,20.66563906]
[1736817735687,26.68899422,182.87,182.86,2.7353]
[1736817735888,26.68899422,182.87,182.82,6.1]
[1736817736089,18.14129422,182.87,182.83,20.66563906]
[1736817736288,9.422e-05,182.87,182.86,2.7353]
[1736817736587,9.422e-05,182.87,182.82,99.8]
[1736817736786,4.06728052,182.87,182.82,11.61072926]
[1736817736988,4.06728052,182.87,182.83,2.7357]
[1736817737188,4.06728052,182.87,182.82,11.61072926]
[1736817737379,4.0671863,182.86,182.79,20.66563906]
[1736817737583,4.0671863,182.86,182.77,6.1]
[1736817737790,4.0671863,182.85,182.77,26.76563906]
[1736817737990,4.0671863,182.85,182.77,26.74563906]
[1736817738289,4.0671863,182.85,182.77,6.1]
[1736817738491,4.0671863,182.84,182.77,6.1]
[1736817738790,301.13349973,182.83,182.81,2.7361]
[1736817738985,301.13349973,182.83,182.76,26.74563906]
[1736817739291,297.06631343,182.83,182.75,79.89300739]
[1736817739479,185.31954391,182.8,182.75,79.89300739]
[1736817739685,173.77194391,182.77,182.75,79.89300739]
[1736817739885,4.04830886,182.82,182.75,79.89300739]
[1736817740281,4.04830886,182.81,182.76,2.7367]
[1736817740484,4.04830886,182.81,182.76,3.342]
[1736817740887,4.04830886,182.81,182.8,2.7362]
[1736817741088,297.06631343,182.83,182.8,2.7362]
[1736817741283,297.06631343,182.83,182.76,3.342]
[1736817741582,4.03900361,182.82,182.81,2.736]
[1736817741788,297.06631343,182.83,182.81,2.736]
[1736817741987,4.03810981,182.82,182.81,2.736]
[1736817745491,297.06631343,182.83,182.81,2.736]
[1736817745692,288.66991343,182.83,182.81,2.736]
[1736817745890,258.52281343,182.83,182.81,2.736]
[1736817746093,222.38345269,182.84,182.83,2.7358]
[1736817746595,115.16555269,182.84,182.83,2.7358]
[1736817746895,76.87855269,182.84,182.83,2.7358]
[1736817747082,91.55567306,182.86,182.85,2.7355]
[1736817747287,20.66563906,182.98,182.83,37.50845901]
[1736817747687,20.66563906,182.98,182.88,2.7349]
[1736817748195,20.66563906,182.95,182.89,78.17323265]
[1736817748493,7.6193,183.02,182.89,78.17323265]
[1736817748694,2.7376,182.71,182.56,2.7398]
[1736817748890,6.48,182.75,182.52,20.66563906]
[1736817749087,20.66563906,182.72,182.55,20.66563906]
[1736817749291,20.66563906,182.78,182.61,20.66563906]
[1736817749486,20.66563906,182.81,182.67,20.66563906]
[1736817749687,20.66563906,182.84,182.67,20.66563906]
[1736817750092,20.66563906,182.87,182.7,20.66563906]
[1736817750292,20.66563906,182.9,182.73,20.66563906]
[1736817750488,20.66563906,182.87,182.71,6.5]
[1736817751188,20.66563906,182.87,182.72,2.7373]
[1736817751189,2.7354,182.86,182.72,2.7373]
[1736817752594,20.66563906,182.87,182.74,2.7371]
[1736817752999,147.21446424,182.84,182.74,2.7371]
[1736817753197,2.7358,182.83,182.71,9.2174]
[1736817753401,2.7358,182.83,182.71,6.48]
[1736817753805,3.2655,182.82,182.71,9.2175]
[1736817754099,3.2655,182.82,182.71,6.48]
[1736817754300,3.2655,182.82,182.74,2.737]
[1736817754700,36.2886044,182.86,182.71,6.48]
[1736817754701,36.2886044,182.86,182.76,20.66563906]
[1736817755092,2.7348,182.9,182.77,2.7366]
[1736817755490,2.7348,182.9,182.76,20.66563906]
[1736817755491,3.1789,182.91,182.78,6.46]
[1736817755696,3.1789,182.91,182.79,20.66563906]
[1736817756494,3.1789,182.91,182.82,2.7359]
[1736817756696,3.1789,182.91,182.79,27.12563906]
[1736817756899,3.1789,182.91,182.79,6.46]
[1736817757502,3.1789,182.91,182.81,2.736]
[1736817758396,5.9135,182.91,182.79,9.1963]
[1736817758906,5.9135,182.91,182.79,6.46]
[1736817759606,2.7348,182.9,182.8,2.7362]
[1736817759802,3.1789,182.91,182.79,6.46]
[1736817760208,36.72408065,182.91,182.79,6.46]
[1736817760408,2.7349,182.89,182.79,9.1963]
[1736817760708,2.7349,182.89,182.79,6.46]
[1736817761207,2.7349,182.89,182.76,20.66563906]
[1736817761410,2.7349,182.89,182.77,6.42]
[1736817761604,2.7349,182.89,182.79,2.7363]
[1736817761805,36.72408065,182.91,182.79,20.66563906]
[1736817762406,2.7349,182.89,182.78,1.6277]
[1736817763307,36.72408065,182.91,182.78,1.6277]
[1736817763507,2.7351,182.88,182.78,1.6277]
[1736817763811,36.72408065,182.91,182.78,1.6277]
[1736817764210,3.1789,182.91,182.78,1.6277]
[1736817765111,2.7349,182.89,182.81,2.7361]
[1736817765513,2.7349,182.89,182.78,1.6277]
[1736817765903,23.84453906,182.91,182.76,20.66563906]
[1736817766108,23.84453906,182.91,182.75,6.38]
[1736817766414,23.84453906,182.91,182.79,2.7364]
[1736817766614,20.66563906,182.88,182.75,6.38]
[1736817767211,2.7351,182.88,182.76,20.66563906]
[1736817768905,2.7351,182.88,182.8,2.7361]
[1736817769817,3.1789,182.91,182.79,20.66563906]
[1736817770011,2.7348,182.9,182.79,20.66563906]
[1736817770210,3.1789,182.91,182.79,20.66563906]
[1736817770411,3.1789,182.91,182.76,22.26653906]
[1736817770614,2.735,182.88,182.82,2.7359]
[1736817771409,3.1789,182.91,182.82,2.7359]
[1736817771615,2.7349,182.89,182.82,2.7359]
[1736817771815,23.84453906,182.91,182.81,2.736]
[1736817772117,2.7353,182.86,182.76,22.26653906]
[1736817772716,2.7353,182.86,182.76,20.66563906]
[1736817773118,2.7353,182.86,182.79,2.7362]
[1736817773413,3.1789,182.91,182.8,12.92656697]
[1736817773613,3.1789,182.91,182.83,2.7357]
[1736817773818,3.1789,182.91,182.8,12.92656697]
[1736817773819,2.735,182.89,182.8,12.92656697]
[1736817774017,3.1789,182.91,182.8,12.92656697]
[1736817774816,2.7353,182.87,182.8,15.66266697]
[1736817775020,3.1789,182.91,182.8,12.92656697]
[1736817776215,2.7351,182.88,182.82,2.7359]
[1736817776821,2.7352,182.87,182.82,2.7359]
[1736817777022,3.1789,182.91,182.8,12.92656697]
[1736817777523,3.1789,182.91,182.83,12.92656697]
[1736817777823,3.1789,182.91,182.88,2.735]
[1736817778513,1.5933,182.91,182.88,2.735]
[1736817780131,1.5933,182.91,182.87,2.7351]
[1736817784231,2.7344,182.92,182.87,2.7351]
[1736817785837,2.7346,182.91,182.87,2.7351]
[1736817788233,14.56486697,182.95,182.82,6.32]
[1736817788536,2.7349,182.9,182.82,6.32]
[1736817789438,1.6383,182.95,182.85,12.92656697]
[1736817789840,2.7341,182.94,182.9,2.7347]
[1736817790042,1.7088,182.96,182.88,12.92656697]
[1736817790229,12.92656697,183.01,182.91,12.92656697]
[1736817790432,12.92656697,183.01,182.82,133.84620437]
[1736817790433,1.6728,183.0,182.88,12.92656697]
[1736817790636,12.92656697,182.95,182.82,133.84620437]
[1736817790940,12.92656697,182.95,182.82,146.77277134]
[1736817791239,1.6647,182.94,182.82,19.24656697]
[1736817791438,3.3859,182.94,182.82,19.24656697]
[1736817792143,2.7349,182.89,182.82,12.92656697]
[1736817792441,12.92656697,182.92,182.82,12.92656697]
[1736817792631,1.5627,182.91,182.82,12.92656697]
[1736817792830,2.7351,182.88,182.83,2.7357]
[1736817795350,2.7351,182.88,182.84,2.7356]
[1736817795741,1.5627,182.91,182.82,12.92656697]
[1736817795947,4.2973,182.91,182.85,2.7354]
[1736817796146,1.5627,182.91,182.85,2.7354]
[1736817797141,2.7348,182.9,182.85,2.7354]
[1736817801650,1.5627,182.91,182.85,2.7354]
[1736817801846,2.7349,182.89,182.85,2.7354]
[1736817805839,2.7352,182.87,182.82,12.92656697]
[1736817806044,2.7352,182.87,182.79,12.92656697]
[1736817806851,2.7352,182.87,182.82,2.7359]
[1736817807252,2.7354,182.86,182.79,12.92656697]
[1736817807553,12.92656697,182.89,182.79,12.92656697]
[1736817808749,2.7357,182.84,182.79,12.92656697]
[1736817810251,2.7357,182.84,182.8,2.7362]
[1736817810949,12.92656697,182.89,182.77,93.84]
[1736817811751,12.92656697,182.89,182.78,2.7364]
[1736817812950,2.7358,182.83,182.78,2.7364]
[1736817814251,2.7353,182.86,182.78,2.7364]
[1736817814474,12.92656697,182.89,182.78,2.7364]
[1736817815260,2.7358,182.83,182.78,2.7364]
[1736817823063,12.92656697,182.89,182.76,12.92656697]
[1736817823266,2.7362,182.81,182.76,2.7368]
[1736817827868,2.7362,182.81,182.75,9.84237154]
[1736817827869,2.7362,182.81,182.77,2.7366]
[1736817828267,4.3628,182.85,182.8,12.92656697]
[1736817828464,12.92656697,182.89,182.8,15.66276697]
[1736817828868,1.661,182.88,182.8,15.66276697]
[1736817829672,1.661,182.88,182.8,2.7362]
[1736817829872,2.7357,182.84,182.8,2.7362]
[1736817830770,1.661,182.88,182.75,9.84237154]
[1736817831068,1.7062,182.9,182.83,12.92656697]
[1736817832069,2.735,182.89,182.85,2.7354]
[1736817832272,2.735,182.89,182.83,12.92656697]
[1736817832575,2.735,182.89,182.84,2.7356]
[1736817834376,12.92656697,182.86,182.75,137.36857591]
[1736817834781,1.5555,182.85,182.75,137.36857591]
[1736817836071,2.736,182.82,182.76,2.7367]
[1736817836275,1.5555,182.85,182.76,2.7367]
[1736817836472,12.92656697,182.83,182.75,9.84237154]
[1736817837978,12.92656697,182.83,182.72,179.84]
[1736817838178,3.2911,182.82,182.72,179.84]
[1736817838885,2.7373,182.73,182.72,86.0]
[1736817840980,2.7373,182.73,182.72,70.9582]
[1736817842280,2.7371,182.74,182.72,55.9582]
[1736817842977,1.6562,182.76,182.72,55.9582]
[1736817843181,2.7373,182.73,182.72,55.9582]
[1736817855198,15.66386697,182.73,182.72,26.1651]
[1736817855398,15.66386697,182.73,182.72,4.0107]
[1736817858599,12.92656697,182.73,182.72,19.0]
[1736817858795,12.92656697,182.73,182.63,2.7387]
[1736817858996,12.92656697,182.73,182.62,3.1516]
[1736817859401,2.738,182.68,182.64,2.7386]
[1736817859797,5.94,182.74,182.63,12.92656697]
[1736817859998,18.86656697,182.74,182.63,12.92656697]
[1736817861003,2.7376,182.71,182.63,12.92656697]
[1736817861198,1.6562,182.76,182.66,12.92656697]
[1736817861404,62.72421232,182.79,182.66,12.92656697]
[1736817861902,56.78421232,182.79,182.66,12.92656697]
[1736817862100,12.92656697,182.79,182.69,12.92656697]
[1736817862306,12.92656697,182.79,182.7,1.7208]
[1736817863105,2.7367,182.77,182.72,2.7374]
[1736817863903,12.92656697,182.79,182.72,2.7374]
[1736817864097,12.92656697,182.76,182.64,12.92656697]
[1736817864905,2.7374,182.72,182.68,2.7379]
[1736817865205,2.7374,182.72,182.64,12.92656697]
[1736817865405,2.7374,182.72,182.67,2.7381]
[1736817865606,12.92656697,182.76,182.64,12.92656697]
[1736817865806,12.92656697,182.79,182.67,12.92656697]
[1736817866306,2.7369,182.76,182.67,12.92656697]
[1736817866506,12.92656697,182.79,182.67,12.92656697]
[1736817866807,2.7367,182.77,182.71,2.7374]
[1736817867007,2.7367,182.77,182.67,12.92656697]
[1736817867902,2.7367,182.77,182.71,2.7374]
[1736817868107,2.7367,182.77,182.67,12.92656697]
[1736817868910,2.7363,182.8,182.7,12.92656697]
[1736817869208,18.77578872,182.82,182.71,4.7917]
[1736817870110,2.7364,182.79,182.74,2.737]
[1736817870699,2.7361,182.81,182.75,2.7368]
[1736817871105,7.5175,182.87,182.73,12.92656697]
[1736817871310,8.27655474,182.85,182.79,8.27655474]
[1736817871705,2.7358,182.83,182.79,8.27655474]
[1736817872308,8.27655474,182.85,182.79,8.27655474]
[1736817872503,8.27655474,182.87,182.81,8.27655474]
[1736817872709,220.90087697,183.0,182.83,8.27655474]
[1736817872710,8.27655474,182.88,182.83,8.27655474]
[1736817873408,12.92724172,182.91,182.8,12.92724172]
[1736817873614,12.92724172,182.91,182.81,4.7102]
[1736817873817,2.735,182.88,182.82,2.7358]
[1736817874008,12.92724172,182.91,182.82,2.7358]
[1736817875515,12.92724172,182.91,182.81,4.7102]
[1736817875717,20.49854172,182.94,182.81,4.7102]
[1736817877315,2.7347,182.9,182.85,2.7354]
[1736817878412,2.7356,182.85,182.81,1.5549]
[1736817878608,12.92724172,182.86,182.81,1.5549]
[1736817879414,2.7357,182.84,182.81,1.5549]
[1736817882621,18.84724172,182.89,182.81,1.5549]
[1736817882816,2.7353,182.87,182.81,1.5549]
[1736817883614,12.92724172,182.92,182.81,1.5549]
[1736817883922,5.9,182.96,182.83,12.92724172]
[1736817884121,12.92724172,182.98,182.88,2.7349]
[1736817884324,12.92724172,182.98,182.86,12.92724172]
[1736817884325,2.7342,182.94,182.86,12.92724172]
[1736817884619,2.7342,182.94,182.9,2.7347]
[1736817885018,2.7343,182.93,182.86,12.92724172]
[1736817885618,2.7346,182.91,182.86,15.66244172]
[1736817885818,12.92724172,182.95,182.84,3.3978]
[1736817886018,12.92724172,182.92,182.84,3.3978]
[1736817888026,2.7353,182.87,182.82,2.736]
[1736817888826,2.7354,182.86,182.81,4.291]
[1736817890329,2.7354,182.86,182.81,1.5549]
[1736817890523,2.7354,182.86,182.82,2.7359]
[1736817890827,2.7351,182.88,182.81,1.5549]
[1736817891725,2.7351,182.88,182.83,2.7358]
[1736817893324,2.7349,182.9,182.82,12.92724172]
[1736817893929,2.7349,182.9,182.85,2.7355]
[1736817895525,2.7349,182.9,182.82,12.92724172]
[1736817895722,2.7349,182.9,182.86,2.7352]
[1736817895930,2.7346,182.91,182.86,2.7352]
[1736817896327,12.92724172,182.95,182.82,12.92724172]
[1736817896530,2.7344,182.92,182.87,2.735]
[1736817896833,2.7344,182.92,182.85,12.92724172]
[1736817897534,2.7344,182.92,182.87,2.7351]
[1736817898334,2.7344,182.92,182.88,2.735]
[1736817901337,12.92724172,182.98,182.85,12.92724172]
[1736817901741,12.92724172,182.98,182.85,18.78724172]
[1736817902536,12.92724172,182.98,182.9,2.7346]
[1736817902537,2.734,182.95,182.9,2.7346]
[1736817903835,2.734,182.95,182.88,12.92724172]
[1736817903836,12.92724172,182.98,182.88,12.92724172]
[1736817904039,12.92724172,183.01,182.93,2.7343]
[1736817905039,2.7334,182.99,182.94,2.734]
[1736817905237,12.92724172,183.01,182.91,12.92724172]
[1736817905943,16.78294172,183.04,182.91,12.92724172]
[1736817908046,2.7332,183.01,182.95,2.7339]
[1736817908247,2.7332,183.01,182.91,12.92724172]
[1736817908544,2.7332,183.01,182.94,12.92724172]
[1736817908748,2.733,183.02,182.97,2.7336]
[1736817908949,3.8557,183.04,182.94,12.92724172]
[1736817909148,18.76724172,183.06,182.92,5.84]
[1736817909149,12.92724172,183.06,182.97,12.92724172]
[1736817909354,12.92724172,183.09,183.0,2.7332]
[1736817911239,2.7326,183.05,183.0,2.7332]
[1736817911445,12.92724172,183.09,183.01,2.733]
[1736817912445,2.7328,183.03,182.98,1.881]
[1736817913149,2.7328,183.03,182.98,4.6145]
[1736817913850,2.7327,183.04,182.99,2.7333]
[1736817915845,2.7329,183.02,182.98,4.6145]
[1736817916052,12.92724172,183.03,182.91,12.92724172]
[1736817916552,2.7333,183.0,182.94,2.7341]
[1736817916748,12.92724172,183.03,182.94,2.7341]
[1736817917250,2.7335,182.99,182.94,2.7341]
[1736817917445,2.7335,182.99,182.95,2.7339]
[1736817918751,2.7333,183.0,182.96,2.7338]
[1736817924856,2.7331,183.01,182.97,2.7337]
[1736817925354,2.7331,183.01,182.97,10.9948235]
[1736817925857,8.2611235,183.07,182.99,8.2611235]
[1736817926057,8.2611235,183.07,183.01,8.2611235]
[1736817926755,2.7325,183.06,183.01,10.9942235]
[1736817927351,2.7325,183.06,183.01,2.7331]
[1736817927746,12.90219699,183.1,183.01,2.7331]
[1736817927952,2.7325,183.05,183.01,2.7331]
[1736817929058,12.90219699,183.04,182.92,12.90219699]
[1736817929555,3.9945,183.11,182.92,12.90219699]
[1736817929858,12.90219699,183.04,182.92,12.90219699]
[1736817930462,2.7329,183.03,182.98,2.7335]
[1736817930758,12.90219699,183.04,182.98,2.7335]
[1736817930961,12.90219699,183.07,182.99,2.7333]
[1736817931157,12.90219699,183.07,182.95,12.90219699]
[1736817931756,12.90219699,183.07,183.0,2.7332]
[1736817932259,12.90219699,183.1,183.0,2.7332]
[1736817932460,2.7325,183.06,183.01,2.733]
[1736817934570,2.7325,183.05,183.01,2.733]
[1736817934860,12.90219699,183.07,182.98,2.7334]
[1736817935255,2.7328,183.04,182.99,2.7334]
[1736817935557,147.21446424,183.19,183.01,12.90219699]
[1736817935763,3.8177,183.18,183.09,2.7319]
[1736817935962,151.03216424,183.18,183.09,2.7319]
[1736817936763,2.7311,183.15,183.09,2.7319]
[1736817938261,3.8177,183.18,183.09,2.7319]
[1736817938459,3.8177,183.18,183.07,12.90219699]
[1736817938758,3.8177,183.18,183.1,2.7317]
[1736817939466,2.7309,183.16,183.11,2.7316]
[1736817942668,6.5483,183.18,183.12,2.7314]
[1736817942863,2.7306,183.18,183.1,12.90219699]
[1736817944069,2.7306,183.18,183.12,2.7314]
[1736817945672,2.7306,183.18,183.1,12.90219699]
[1736817945864,2.7306,183.18,183.13,2.7313]
[1736817947570,2.7307,183.18,183.13,2.7313]
[1736817947870,12.90219699,183.19,183.06,12.90219699]
[1736817948074,2.7314,183.13,183.06,12.90219699]
[1736817949271,2.7314,183.13,183.08,2.7319]
[1736817951774,2.7314,183.13,183.06,12.90219699]
[1736817951963,2.7314,183.13,183.09,2.7319]
[1736817953774,2.7312,183.14,183.1,2.7317]
[1736817953975,2.7312,183.14,183.1,12.90219699]
[1736817956979,18.64219699,183.16,183.02,5.8349]
[1736817957179,12.90219699,183.13,183.02,18.73709699]
[1736817957478,8.25507405,183.1,183.05,8.25507405]
[1736817957681,2.7323,183.07,183.05,8.25507405]
[1736817958078,8.25507405,183.1,183.05,8.25507405]
[1736817958276,2.7321,183.08,183.05,8.25507405]
[1736817958872,16.37,183.41,183.07,10.98707405]
[1736817959078,8.25507405,183.19,183.12,8.25507405]
[1736817959280,9.6786,183.21,183.14,8.25507405]
[1736817959574,3.9386,183.21,183.11,12.88525673]
[1736817959974,2.731,183.15,183.11,12.88525673]
[1736817960374,3.9386,183.21,183.11,12.88525673]
[1736817960579,3.9386,183.21,183.08,12.88525673]
[1736817960580,12.88525673,183.2,183.08,12.88525673]
[1736817961181,2.7308,183.17,183.11,12.88525673]
[1736817962281,2.7308,183.17,183.12,2.7313]
[1736817963683,2.7309,183.16,183.11,15.61685673]
[1736817965979,2.7312,183.14,183.11,12.88525673]
[1736817966181,12.88525673,183.18,183.08,12.88525673]
[1736817966882,2.7313,183.13,183.08,15.61725673]
[1736817967987,12.88525673,183.18,183.05,12.88525673]
[1736817968185,2.7316,183.11,183.06,2.7323]
[1736817969091,2.7316,183.11,183.07,2.7322]
[1736817969386,2.7315,183.12,183.07,2.7322]
[1736817970786,2.7316,183.11,183.06,2.7323]
[1736817970990,12.88525673,183.15,183.06,2.7323]
[1736817971194,12.88525673,183.15,183.02,16.74325673]
[1736817971489,1.9063,183.14,183.02,14.84285673]
[1736817971886,2.7319,183.09,183.04,2.7325]
[1736817974290,2.7319,183.09,183.05,2.7324]
[1736817976293,12.88525673,183.12,183.02,14.84285673]
[1736817976494,2.7325,183.05,183.0,4.05067724]
[1736817978092,2.7325,183.05,183.01,2.733]
[1736817988595,12.88525673,183.12,183.0,4.05067724]
[1736817988896,2.0337,183.13,183.05,12.88525673]
[1736817989097,1.9063,183.14,183.05,12.88525673]
[1736817989300,8.24623818,183.19,183.13,8.24623818]
[1736817989499,3.178,183.21,183.15,8.24623818]
[1736817989500,10.32003818,183.21,183.15,8.24623818]
[1736817990097,2.7304,183.19,183.15,8.24623818]
[1736817991303,2.7304,183.19,183.13,2.7312]
[1736817991602,2.7306,183.18,183.13,2.7312]
[1736817994806,12.88325034,183.17,183.06,12.88325034]
[1736817996109,2.7313,183.13,183.08,2.7319]
[1736817996305,12.88325034,183.14,183.02,5.9621]
[1736817996503,12.88325034,183.14,183.02,24.58535034]
[1736817996704,12.88325034,183.14,183.02,5.9621]
[1736817996905,12.88325034,183.14,183.02,18.84535034]
[1736817997109,2.7316,183.11,183.06,2.7323]
[1736817997814,2.7318,183.1,183.05,2.7325]
[1736817998010,12.88325034,183.11,183.02,5.9621]
[1736817998207,12.88325034,183.11,183.02,1.9731]
[1736817998414,2.7321,183.08,183.03,2.7328]
[1736818002717,2.7318,183.1,183.06,2.7323]
[1736818003211,2.7316,183.11,183.06,2.7323]
[1736818005517,1.9997,183.13,183.07,2.7322]
[1736818005518,2.7315,183.12,183.07,2.7322]
[1736818006018,2.7313,183.14,183.05,12.88325034]
[1736818006218,12.88325034,183.15,183.05,12.88325034]
[1736818007121,2.7314,183.13,183.08,2.732]
[1736818007418,12.88325034,183.15,183.05,12.88325034]
[1736818007816,2.7313,183.14,183.08,2.732]
[1736818008018,12.88325034,183.15,183.05,12.88325034]
[1736818008216,14.95545034,183.15,183.05,12.88325034]
[1736818008622,2.7315,183.12,183.06,2.7323]
[1736818009819,2.7316,183.11,183.06,2.7323]
[1736818010916,2.7318,183.1,183.05,2.7325]
[1736818012626,2.7319,183.09,183.04,2.7326]
[1736818014419,16.05715034,183.15,183.02,3.9703]
[1736818014724,2.7324,183.06,183.02,4.706]
[1736818016521,2.7324,183.06,183.02,2.7329]
[1736818017319,2.7322,183.07,183.0,4.05067724]
[1736818017519,2.7322,183.07,183.03,2.7328]
[1736818019527,16.05715034,183.15,183.0,4.05067724]
[1736818019729,14.95545034,183.15,183.05,12.88325034]
[1736818020529,2.7315,183.12,183.07,2.7322]
[1736818020829,14.95545034,183.15,183.05,12.88325034]
[1736818021724,1.9781,183.16,183.08,12.88325034]
[1736818022123,2.7311,183.15,183.1,2.7317]
[1736818022325,1.9781,183.16,183.05,12.88325034]
[1736818024134,2.7316,183.12,183.07,2.7321]
[1736818025532,2.7316,183.12,183.08,2.732]
[1736818027029,2.7312,183.14,183.05,12.88325034]
[1736818027335,1.9781,183.16,183.05,12.88325034]
[1736818029433,1.9781,183.16,183.08,12.88325034]
[1736818029634,46.13901606,183.31,183.08,12.88325034]
[1736818029835,1.9426,183.21,183.11,12.88325034]
[1736818030033,1.9426,183.21,183.13,2.7312]
[1736818030034,2.7308,183.17,183.13,2.7312]
[1736818030235,12.88325034,183.16,183.02,3.9679]
[1736818030437,12.88325034,183.12,183.02,3.9679]
[1736818030637,2.7321,183.08,183.03,2.7327]
[1736818032042,12.88325034,183.09,182.96,12.88325034]